bitfinex/quotes_SOLUSD_20230105
["timestamp","ask_amount","ask_price","bid_price","bid_amount"]
[1672898292365,56.36,13.317,13.305,224.4]
[1672898292589,56.36,13.317,13.306,20.0]
[1672898292590,20.0,13.316,13.306,20.0]
[1672898292803,15.57897086,13.316,13.308,20.0]
[1672898294058,20.0,13.315,13.308,20.0]
[1672898294466,20.0,13.315,13.307,398.4473]
[1672898296465,35.57897086,13.315,13.307,398.4473]
[1672898298054,35.57897086,13.315,13.307,342.0473]
[1672898299108,35.57897086,13.315,13.303,20.0]
[1672898299320,56.37,13.314,13.302,224.4]
[1672898299633,35.57897086,13.313,13.305,20.0]
[1672898299951,15.57897086,13.312,13.304,224.4]
[1672898300140,20.0,13.311,13.304,224.4]
[1672898300563,35.57897086,13.311,13.306,20.0]
[1672898300771,35.57897086,13.311,13.305,224.4]
[1672898301721,56.35,13.318,13.306,224.4]
[1672898301938,15.57897086,13.316,13.306,224.4]
[1672898302143,20.0,13.315,13.307,20.0]
[1672898302364,20.0,13.315,13.308,224.4]
[1672898302556,20.0,13.32,13.309,20.0]
[1672898302766,20.0,13.32,13.311,20.0]
[1672898303518,71.91897086,13.321,13.31,224.4]
[1672898303711,78.07849524,13.344,13.312,224.4]
[1672898303916,20.0,13.334,13.314,20.0]
[1672898304131,35.57897086,13.334,13.314,244.4]
[1672898304337,49.89897086,13.333,13.316,224.4]
[1672898304770,15.57897086,13.332,13.318,224.4]
[1672898305196,54.33,13.331,13.32,224.4]
[1672898305620,15.57897086,13.33,13.321,20.0]
[1672898305938,20.0,13.329,13.321,20.0]
[1672898306148,20.0,13.329,13.32,224.4]
[1672898306462,15.57897086,13.328,13.32,224.4]
[1672898306686,20.0,13.327,13.32,224.4]
[1672898307093,15.57897086,13.326,13.321,20.0]
[1672898307298,20.0,13.325,13.321,20.0]
[1672898308047,35.57897086,13.325,13.319,224.4]
[1672898308782,35.57897086,13.325,13.317,20.0]
[1672898309178,35.57897086,13.325,13.318,224.4]
[1672898310033,35.57897086,13.325,13.316,280.76]
[1672898310246,35.57897086,13.325,13.316,224.4]
[1672898322208,20.0,13.325,13.317,20.0]
[1672898322426,35.57897086,13.33,13.317,20.0]
[1672898322633,35.57897086,13.33,13.318,224.4]
[1672898322846,15.57897086,13.329,13.319,20.0]
[1672898323047,20.0,13.328,13.319,20.0]
[1672898323479,15.57897086,13.327,13.319,20.0]
[1672898323693,20.0,13.326,13.319,20.0]
[1672898324109,15.57897086,13.325,13.319,20.0]
[1672898324323,15.57897086,13.325,13.318,224.4]
[1672898324518,20.0,13.324,13.318,224.4]
[1672898324733,20.0,13.324,13.318,20.0]
[1672898324947,35.57897086,13.324,13.318,20.0]
[1672898325576,20.0,13.324,13.318,20.0]
[1672898325790,15.57897086,13.329,13.318,20.0]
[1672898326003,20.0,13.328,13.318,20.0]
[1672898326412,35.57897086,13.328,13.318,20.0]
[1672898328013,35.57897086,13.328,13.32,20.0]
[1672898328848,35.57897086,13.328,13.319,224.4]
[1672898329058,56.31,13.327,13.316,244.4]
[1672898329270,20.0,13.326,13.316,244.4]
[1672898329486,35.57897086,13.326,13.316,244.4]
[1672898329702,15.57897086,13.325,13.316,244.4]
[1672898329908,20.0,13.324,13.316,244.4]
[1672898330336,15.57897086,13.323,13.316,244.4]
[1672898331165,20.0,13.324,13.316,244.4]
[1672898331370,20.0,13.328,13.316,244.4]
[1672898331579,35.57897086,13.328,13.316,244.4]
[1672898331906,71.88897086,13.327,13.316,244.4]
[1672898332110,20.0,13.326,13.316,244.4]
[1672898332724,15.57897086,13.325,13.316,244.4]
[1672898332939,20.0,13.324,13.316,244.4]
[1672898333473,15.57897086,13.323,13.316,244.4]
[1672898333682,20.0,13.324,13.316,244.4]
[1672898333889,15.57897086,13.326,13.316,244.4]
[1672898334125,20.0,13.325,13.316,244.4]
[1672898335060,15.57897086,13.324,13.316,244.4]
[1672898335256,20.0,13.323,13.316,244.4]
[1672898335675,35.57897086,13.323,13.316,244.4]
[1672898336202,35.57897086,13.323,13.316,224.4]
[1672898336930,35.57897086,13.323,13.315,224.4]
[1672898337364,35.57897086,13.323,13.309,244.4]
[1672898337899,56.34,13.322,13.312,20.0]
[1672898338205,20.0,13.321,13.311,224.4]
[1672898338422,35.57897086,13.321,13.311,224.4]
[1672898338632,15.57897086,13.32,13.311,224.4]
[1672898338842,20.0,13.319,13.312,224.4]
[1672898339247,35.57897086,13.319,13.312,224.4]
[1672898339792,35.57897086,13.319,13.312,20.0]
[1672898341138,35.57897086,13.319,13.311,224.4]
[1672898342203,35.57897086,13.319,13.311,20.0]
[1672898342416,35.57897086,13.319,13.312,224.4]
[1672898343341,35.57897086,13.319,13.31,224.4]
[1672898343551,35.57897086,13.319,13.311,20.0]
[1672898343768,35.57897086,13.319,13.312,224.4]
[1672898344833,35.57897086,13.319,13.308,56.39]
[1672898344834,35.57897086,13.319,13.309,224.4]
[1672898348081,20.0,13.318,13.309,224.4]
[1672898348397,76.35,13.318,13.308,224.4]
[1672898348730,35.57897086,13.317,13.308,224.4]
[1672898349029,20.0,13.317,13.309,20.0]
[1672898349236,20.0,13.317,13.31,224.4]
[1672898349445,15.57897086,13.321,13.311,20.0]
[1672898349771,20.0,13.32,13.312,224.4]
[1672898349961,20.0,13.32,13.313,20.0]
[1672898351326,414.0,13.332,13.313,20.0]
[1672898351327,15.57897086,13.324,13.315,224.4]
[1672898351536,15.57897086,13.324,13.316,20.0]
[1672898351748,54.3,13.331,13.317,224.4]
[1672898351958,15.57897086,13.33,13.318,20.0]
[1672898352506,56.31,13.329,13.318,20.0]
[1672898352686,76.31,13.329,13.318,20.0]
[1672898352900,15.57897086,13.328,13.318,20.0]
[1672898353122,20.0,13.327,13.318,20.0]
[1672898354192,20.0,13.327,13.32,20.0]
[1672898354507,20.0,13.331,13.32,20.0]
[1672898354815,20.0,13.331,13.322,224.4]
[1672898355215,15.57897086,13.33,13.322,224.4]
[1672898355635,20.0,13.329,13.32,224.4]
[1672898355856,20.0,13.329,13.321,20.0]
[1672898356056,20.0,13.329,13.32,224.4]
[1672898356057,35.57897086,13.329,13.32,224.4]
[1672898357648,35.57897086,13.329,13.317,224.4]
[1672898357968,35.57897086,13.329,13.321,224.4]
[1672898359117,35.57897086,13.329,13.32,224.4]
[1672898359326,35.57897086,13.329,13.321,20.0]
[1672898360601,35.57897086,13.329,13.32,224.4]
[1672898361628,20.0,13.329,13.32,224.4]
[1672898361844,20.0,13.331,13.32,224.4]
[1672898362050,15.57897086,13.331,13.322,224.4]
[1672898362268,35.57897086,13.33,13.323,20.0]
[1672898362595,20.0,13.329,13.323,20.0]
[1672898363011,20.0,13.329,13.32,224.4]
[1672898363224,20.0,13.329,13.321,20.0]
[1672898363426,20.0,13.329,13.323,20.0]
[1672898364173,20.0,13.329,13.322,224.4]
[1672898364488,20.0,13.329,13.322,20.0]
[1672898366391,56.28,13.334,13.324,20.0]
[1672898366587,20.0,13.333,13.324,20.0]
[1672898366794,20.0,13.333,13.326,20.0]
[1672898368274,15.57897086,13.334,13.326,20.0]
[1672898369641,20.0,13.333,13.326,20.0]
[1672898371630,56.48,13.34,13.326,20.0]
[1672898371841,56.48,13.34,13.327,37.0]
[1672898371842,56.26,13.34,13.327,37.0]
[1672898372037,15.57897086,13.339,13.329,20.0]
[1672898372461,15.57897086,13.339,13.33,224.4]
[1672898373084,20.0,13.338,13.33,224.4]
[1672898373301,76.27,13.338,13.33,224.4]
[1672898373518,15.57897086,13.337,13.332,20.0]
[1672898373732,20.0,13.336,13.332,20.0]
[1672898374260,20.0,13.335,13.322,56.34]
[1672898374448,63.2165815,13.335,13.32,20.0]
[1672898374685,135.07555236,13.334,13.32,20.0]
[1672898375021,58.79555236,13.333,13.32,20.0]
[1672898375235,20.0,13.332,13.32,20.0]
[1672898375443,135.08555236,13.332,13.32,20.0]
[1672898375642,15.57897086,13.331,13.32,20.0]
[1672898375842,20.0,13.33,13.32,20.0]
[1672898376277,15.57897086,13.329,13.319,224.4]
[1672898376484,20.0,13.328,13.319,224.4]
[1672898376703,20.0,13.328,13.319,20.0]
[1672898376900,35.57897086,13.328,13.32,224.4]
[1672898377112,35.57897086,13.328,13.321,20.0]
[1672898377539,35.57897086,13.328,13.32,224.4]
[1672898377945,35.57897086,13.328,13.319,20.0]
[1672898378371,35.57897086,13.328,13.32,224.31050563]
[1672898378592,35.57897086,13.328,13.321,20.0]
[1672898379120,35.57897086,13.328,13.32,224.31050563]
[1672898380374,35.57897086,13.328,13.318,224.31050563]
[1672898380577,35.57897086,13.328,13.319,20.0]
[1672898380787,35.57897086,13.328,13.32,224.31050563]
[1672898381852,35.57897086,13.328,13.318,224.31050563]
[1672898382172,35.57897086,13.328,13.319,20.0]
[1672898382375,35.57897086,13.328,13.32,224.31050563]
[1672898383429,35.57897086,13.328,13.318,224.31050563]
[1672898383626,35.57897086,13.328,13.319,20.0]
[1672898384800,35.57897086,13.328,13.318,224.31050563]
[1672898387218,78.79555236,13.328,13.318,224.31050563]
[1672898387966,78.79555236,13.328,13.317,224.31050563]
[1672898388174,78.79555236,13.328,13.317,280.67050563]
[1672898388387,78.79555236,13.328,13.317,224.31050563]
[1672898389959,78.79555236,13.328,13.318,20.0]
[1672898390360,78.79555236,13.328,13.32,224.31050563]
[1672898390570,78.79555236,13.328,13.321,20.0]
[1672898390777,78.79555236,13.328,13.32,224.31050563]
[1672898391413,78.79555236,13.328,13.319,20.0]
[1672898393627,35.57897086,13.328,13.319,20.0]
[1672898394272,20.0,13.328,13.319,20.0]
[1672898394465,20.0,13.33,13.319,20.0]
[1672898394890,56.31,13.329,13.319,20.0]
[1672898395113,20.0,13.328,13.319,20.0]
[1672898396273,20.0,13.328,13.318,224.31050563]
[1672898396465,20.0,13.328,13.317,224.31050563]
[1672898396680,20.0,13.328,13.319,224.31050563]
[1672898396891,20.0,13.328,13.32,20.0]
[1672898397313,20.0,13.329,13.32,20.0]
[1672898397528,20.0,13.33,13.32,20.0]
[1672898398047,35.57897086,13.33,13.318,244.31050563]
[1672898398259,56.31,13.329,13.318,244.31050563]
[1672898398470,20.0,13.328,13.318,244.31050563]
[1672898398692,20.0,13.328,13.318,20.0]
[1672898398883,20.0,13.328,13.32,20.0]
[1672898399425,20.0,13.331,13.32,20.0]
[1672898399634,76.3,13.331,13.32,20.0]
[1672898399837,20.0,13.331,13.323,20.0]
[1672898400363,20.0,13.332,13.323,20.0]
[1672898400989,20.0,13.335,13.323,20.0]
[1672898401201,56.27,13.338,13.325,224.31050563]
[1672898401425,20.0,13.337,13.326,20.0]
[1672898401740,20.0,13.337,13.328,20.0]
[1672898401741,56.27,13.337,13.328,20.0]
[1672898401932,20.0,13.336,13.328,20.0]
[1672898402139,20.0,13.336,13.329,224.31050563]
[1672898402344,20.0,13.336,13.33,20.0]
[1672898402564,35.57897086,13.336,13.329,224.31050563]
[1672898403194,35.57897086,13.336,13.328,224.31050563]
[1672898403405,35.57897086,13.336,13.329,20.0]
[1672898403614,35.57897086,13.336,13.328,224.31050563]
[1672898404247,35.57897086,13.336,13.324,56.33]
[1672898404248,35.57897086,13.336,13.325,224.31050563]
[1672898404459,35.57897086,13.336,13.326,20.0]
[1672898404675,35.57897086,13.336,13.328,20.0]
[1672898404892,56.28,13.335,13.327,224.31050563]
[1672898405290,15.57897086,13.334,13.327,224.31050563]
[1672898405733,15.57897086,13.334,13.324,224.4]
[1672898406052,15.57897086,13.334,13.321,20.0]
[1672898406366,76.29,13.333,13.319,56.35]
[1672898406676,15.57897086,13.332,13.32,224.4]
[1672898406884,15.57897086,13.332,13.32,20.0]
[1672898407072,76.3,13.331,13.32,20.0]
[1672898407288,76.3,13.331,13.319,224.4]
[1672898407498,15.57897086,13.33,13.319,224.4]
[1672898407706,20.0,13.329,13.319,224.4]
[1672898407938,76.31,13.329,13.318,20.0]
[1672898408124,91.88897086,13.329,13.318,20.0]
[1672898408566,91.88897086,13.329,13.317,224.4]
[1672898408754,20.0,13.328,13.317,224.4]
[1672898408968,91.88897086,13.329,13.316,224.4]
[1672898409191,56.31,13.327,13.317,20.0]
[1672898409399,20.0,13.326,13.317,20.0]
[1672898410662,35.57897086,13.329,13.317,20.0]
[1672898410869,91.88897086,13.329,13.317,20.0]
[1672898411081,35.57897086,13.329,13.316,224.4]
[1672898411295,71.88897086,13.328,13.316,224.4]
[1672898411506,20.0,13.327,13.316,20.0]
[1672898411933,56.32,13.326,13.316,20.0]
[1672898412668,56.32,13.326,13.315,20.0]
[1672898413623,56.32,13.326,13.314,224.4]
[1672898413809,20.0,13.324,13.312,224.4]
[1672898414018,20.0,13.324,13.308,112.3721]
[1672898414019,20.0,13.323,13.308,168.7621]
[1672898414347,133.05809927,13.323,13.308,168.7621]
[1672898414536,61.14912841,13.322,13.308,168.7621]
[1672898414747,20.0,13.321,13.309,224.4]
[1672898414976,76.34,13.321,13.31,20.0]
[1672898416445,76.34,13.321,13.309,224.4]
[1672898416660,15.57897086,13.32,13.309,224.4]
[1672898417289,76.35,13.319,13.309,224.4]
[1672898417904,15.57897086,13.318,13.309,224.4]
[1672898418524,15.57897086,13.318,13.306,224.4]
[1672898418751,56.36,13.317,13.305,56.41]
[1672898418966,20.0,13.316,13.302,164.9059]
[1672898419158,96.7714326,13.316,13.3,20.0]
[1672898419367,113.1414326,13.315,13.3,20.0]
[1672898419620,20.0,13.314,13.301,56.42]
[1672898419831,76.7714326,13.314,13.302,224.4]
[1672898420044,113.1414326,13.313,13.302,224.4]
[1672898420357,20.0,13.312,13.302,224.4]
[1672898420975,91.95897086,13.312,13.302,20.0]
[1672898421395,91.95897086,13.312,13.301,224.4]
[1672898422044,133.1514326,13.312,13.298,169.8417145]
[1672898422230,133.1514326,13.312,13.299,20.0]
[1672898422441,133.1514326,13.312,13.298,113.4017145]
[1672898430125,20.0,13.311,13.298,113.4017145]
[1672898430339,20.0,13.31,13.298,113.4017145]
[1672898430554,20.0,13.309,13.298,113.4017145]
[1672898430882,20.0,13.308,13.298,113.4017145]
[1672898431177,20.0,13.307,13.298,113.4017145]
[1672898431393,20.0,13.306,13.298,113.4017145]
[1672898431590,35.57897086,13.306,13.298,113.4017145]
[1672898431805,15.57897086,13.305,13.298,113.4017145]
[1672898434103,15.57897086,13.305,13.298,337.8017145]
[1672898434314,20.0,13.306,13.298,337.8017145]
[1672898434524,56.37,13.313,13.3,224.4]
[1672898434525,15.57897086,13.31,13.3,224.4]
[1672898434756,15.57897086,13.31,13.301,20.0]
[1672898434962,20.0,13.309,13.301,20.0]
[1672898436032,15.57897086,13.308,13.3,224.4]
[1672898436252,20.0,13.307,13.3,224.4]
[1672898436645,35.57897086,13.307,13.3,224.4]
[1672898437819,35.57897086,13.307,13.299,56.43]
[1672898438025,35.57897086,13.307,13.298,113.4017145]
[1672898438868,56.4,13.306,13.298,113.4017145]
[1672898439400,15.57897086,13.305,13.298,113.4017145]
[1672898440015,20.0,13.304,13.298,113.4017145]
[1672898440228,76.41,13.304,13.298,113.4017145]
[1672898440436,15.57897086,13.303,13.298,113.4017145]
[1672898440643,20.0,13.302,13.298,113.4017145]
[1672898441064,35.57897086,13.302,13.298,113.4017145]
[1672898451710,35.57897086,13.302,13.289,56.48]
[1672898452026,115.03248174,13.301,13.288,335.6611]
[1672898452332,35.57897086,13.3,13.288,335.6611]
[1672898452745,92.00897086,13.299,13.288,335.6611]
[1672898452960,92.00897086,13.299,13.288,111.2611]
[1672898452961,20.0,13.298,13.288,111.2611]
[1672898453283,35.57897086,13.298,13.288,111.2611]
[1672898453487,15.57897086,13.297,13.288,111.2611]
[1672898453806,20.0,13.296,13.288,111.2611]
[1672898454210,15.57897086,13.295,13.288,111.2611]
[1672898455382,20.0,13.296,13.288,111.2611]
[1672898455383,20.0,13.296,13.29,224.4]
[1672898455576,35.57897086,13.299,13.291,20.0]
[1672898455908,35.57897086,13.299,13.293,20.0]
[1672898457785,35.57897086,13.299,13.29,56.47]
[1672898457995,35.57897086,13.299,13.291,20.0]
[1672898461267,20.0,13.299,13.291,20.0]
[1672898462531,20.0,13.299,13.292,224.4]
[1672898462840,20.0,13.306,13.292,224.4]
[1672898463055,15.82701746,13.302,13.294,224.4]
[1672898463265,20.0,13.301,13.295,20.0]
[1672898464107,56.39,13.308,13.293,20.0]
[1672898464108,15.82701746,13.306,13.293,20.0]
[1672898464320,15.82701746,13.3,13.291,20.0]
[1672898464536,20.0,13.299,13.291,20.0]
[1672898464939,15.82701746,13.298,13.291,20.0]
[1672898465154,20.0,13.297,13.291,20.0]
[1672898465597,15.82701746,13.296,13.291,20.0]
[1672898466839,20.0,13.297,13.293,20.0]
[1672898467052,15.96775524,13.298,13.293,20.0]
[1672898467384,15.96775524,13.296,13.291,20.0]
[1672898470412,56.42,13.302,13.291,20.0]
[1672898470623,35.96775524,13.301,13.291,20.0]
[1672898471050,15.96775524,13.3,13.292,224.4]
[1672898471260,20.0,13.299,13.293,20.0]
[1672898471791,15.96775524,13.298,13.293,20.0]
[1672898472223,20.0,13.297,13.293,20.0]
[1672898472948,20.0,13.297,13.291,244.4]
[1672898476101,56.39,13.308,13.294,20.0]
[1672898476311,56.39,13.308,13.296,224.4]
[1672898476312,20.0,13.307,13.296,224.4]
[1672898476642,20.0,13.307,13.297,20.0]
[1672898476837,20.0,13.307,13.296,224.4]
[1672898476838,56.4,13.306,13.296,224.4]
[1672898482434,15.96775524,13.305,13.296,224.4]
[1672898482948,58.61248174,13.304,13.295,115.3498]
[1672898483150,20.0,13.303,13.295,115.3498]
[1672898483357,35.96775524,13.303,13.293,108.1502]
[1672898483586,15.96775524,13.302,13.293,108.1502]
[1672898483787,20.0,13.301,13.293,108.1502]
[1672898484204,15.96775524,13.3,13.293,108.1502]
[1672898484623,20.0,13.299,13.293,332.5502]
[1672898488416,20.0,13.302,13.293,332.5502]
[1672898490324,36.00103393,13.302,13.293,332.5502]
[1672898492931,36.00103393,13.302,13.293,108.1502]
[1672898495364,36.00103393,13.302,13.289,224.4]
[1672898495566,36.00103393,13.302,13.29,280.87]
[1672898495773,36.00103393,13.302,13.291,20.0]
[1672898497342,36.00103393,13.302,13.289,56.48]
[1672898497558,74.61351567,13.302,13.288,76.48]
[1672898497778,56.42,13.301,13.288,20.0]
[1672898497995,20.0,13.3,13.288,20.0]
[1672898498203,36.00103393,13.3,13.288,20.0]
[1672898498420,16.00103393,13.299,13.288,20.0]
[1672898498639,20.0,13.298,13.288,20.0]
[1672898500951,20.0,13.298,13.287,397.7745]
[1672898501160,20.0,13.298,13.288,20.0]
[1672898503136,16.00103393,13.298,13.288,20.0]
[1672898503362,16.00103393,13.298,13.288,244.4]
[1672898503363,20.0,13.297,13.288,244.4]
[1672898503979,20.0,13.298,13.288,244.4]
[1672898504189,20.0,13.299,13.288,244.4]
[1672898504498,76.43,13.299,13.288,244.4]
[1672898505138,20.0,13.299,13.29,20.0]
[1672898506938,16.00103393,13.298,13.288,110.8468]
[1672898507141,20.0,13.297,13.288,110.8468]
[1672898508836,20.0,13.297,13.29,20.0]
[1672898509779,20.0,13.297,13.289,20.0]
[1672898512429,20.0,13.297,13.288,110.8468]
[1672898512842,20.0,13.297,13.287,56.48]
[1672898513057,16.00103393,13.296,13.286,124.3679837]
[1672898514192,16.00103393,13.296,13.286,58.0649837]
[1672898514401,56.45,13.295,13.286,58.0649837]
[1672898514625,20.0,13.294,13.286,58.0649837]
[1672898514822,79.17835139,13.294,13.286,58.0649837]
[1672898515030,99.63731746,13.293,13.286,58.0649837]
[1672898515253,20.0,13.292,13.286,58.0649837]
[1672898515454,79.17835139,13.292,13.286,58.0649837]
[1672898515666,43.17731746,13.291,13.286,58.0649837]
[1672898515870,20.0,13.29,13.286,58.0649837]
[1672898516286,119.64731746,13.29,13.286,58.0649837]
[1672898516501,63.17731746,13.29,13.286,58.0649837]
[1672898520716,79.39523,13.29,13.286,58.0649837]
[1672898520932,63.17731746,13.29,13.286,58.0649837]
[1672898521673,16.21791254,13.289,13.286,58.0649837]
[1672898522199,20.0,13.288,13.286,58.0649837]
[1672898522726,20.0,13.289,13.286,58.0649837]
[1672898522915,16.21791254,13.287,13.286,58.0649837]
[1672898523125,36.21791254,13.287,13.286,58.0649837]
[1672898528377,56.44,13.297,13.287,20.0]
[1672898528590,16.21791254,13.292,13.287,20.0]
[1672898528810,16.21791254,13.292,13.289,20.0]
[1672898529032,16.21791254,13.292,13.288,56.48]
[1672898529343,16.21791254,13.292,13.287,20.0]
[1672898532162,95.97215211,13.301,13.288,224.4]
[1672898532379,15.32390318,13.297,13.289,20.0]
[1672898532708,20.0,13.296,13.291,20.0]
[1672898533549,20.0,13.296,13.291,10.0]
[1672898533951,2.4387,13.296,13.291,10.0]
[1672898534162,39.55215211,13.301,13.291,10.0]
[1672898534374,15.32390318,13.3,13.292,20.0]
[1672898535127,20.0,13.299,13.292,20.0]
[1672898537964,15.46454426,13.298,13.291,234.4]
[1672898538154,20.0,13.297,13.291,10.0]
[1672898538482,15.46454426,13.296,13.291,10.0]
[1672898538700,20.0,13.295,13.291,10.0]
[1672898543096,35.46454426,13.295,13.29,224.4]
[1672898543959,35.46454426,13.295,13.291,20.0]
[1672898544273,20.0,13.295,13.291,20.0]
[1672898544461,15.46454426,13.297,13.291,20.0]
[1672898544673,20.0,13.296,13.291,20.0]
[1672898546149,35.46454426,13.296,13.291,20.0]
[1672898546359,35.46454426,13.296,13.29,20.0]
[1672898547742,35.46454426,13.296,13.289,224.4]
[1672898548478,35.46454426,13.296,13.29,20.0]
[1672898557610,56.45,13.295,13.288,115.8784]
[1672898557822,20.0,13.294,13.282,56.51]
[1672898558025,35.46454426,13.294,13.283,112.8573]
[1672898558230,71.92454426,13.293,13.283,112.8573]
[1672898558671,15.46454426,13.292,13.286,398.4082837]
[1672898562871,15.46454426,13.292,13.286,58.0649837]
[1672898566125,76.47,13.291,13.286,58.0649837]
[1672898566536,15.46454426,13.29,13.286,58.0649837]
[1672898566955,76.48,13.289,13.286,58.0649837]
[1672898567381,15.46454426,13.288,13.286,58.0649837]
[1672898567590,20.0,13.287,13.286,58.0649837]
[1672898567802,20.0,13.287,13.286,36.9205837]
[1672898568011,35.87922045,13.287,13.286,17.3653837]
[1672898569803,20.0,13.287,13.286,17.3653837]
[1672898573174,35.87922045,13.287,13.286,17.3653837]
[1672898580020,35.87922045,13.287,13.277,56.53]
[1672898580233,20.0,13.286,13.273,56.54]
[1672898580551,20.0,13.286,13.272,112.9916]
[1672898580552,20.0,13.284,13.272,112.9916]
[1672898580857,41.90948544,13.285,13.273,42.41737149]
[1672898581056,15.87922045,13.283,13.277,224.4]
[1672898581267,20.0,13.284,13.278,20.0]
[1672898581684,20.0,13.286,13.278,20.0]
[1672898582001,20.0,13.286,13.277,338.245]
[1672898582209,20.0,13.286,13.278,20.0]
[1672898582425,35.87922045,13.286,13.278,20.0]
[1672898584023,35.87922045,13.286,13.277,394.775]
[1672898584333,35.87922045,13.286,13.278,20.0]
[1672898584743,20.0,13.286,13.278,20.0]
[1672898585267,20.0,13.287,13.278,20.0]
[1672898585470,20.0,13.287,13.28,20.0]
[1672898586961,20.0,13.287,13.279,338.6788]
[1672898587879,20.0,13.287,13.279,114.2788]
[1672898588111,20.0,13.287,13.279,338.6788]
[1672898588849,20.0,13.287,13.279,114.2788]
[1672898589051,15.87922045,13.286,13.279,338.6788]
[1672898589264,20.0,13.285,13.279,338.6788]
[1672898590321,35.87922045,13.285,13.279,338.6788]
[1672898590510,35.87922045,13.285,13.277,338.245]
[1672898590732,35.87922045,13.285,13.274,56.54]
[1672898591062,35.87922045,13.285,13.273,56.54]
[1672898591248,35.87922045,13.285,13.273,169.4333]
[1672898591454,35.87922045,13.285,13.274,20.0]
[1672898591666,35.87922045,13.285,13.273,169.4333]
[1672898592301,56.5,13.284,13.273,56.54]
[1672898592509,77.09523389,13.285,13.27,56.56]
[1672898592720,15.87922045,13.283,13.274,280.94]
[1672898592935,15.87922045,13.283,13.27,224.4]
[1672898593153,15.87922045,13.283,13.277,224.4]
[1672898598406,15.87922045,13.283,13.276,291.2159386]
[1672898600521,20.0,13.285,13.277,20.0]
[1672898600726,20.0,13.287,13.277,20.0]
[1672898600919,15.4480831,13.284,13.278,56.52]
[1672898601339,76.48,13.287,13.277,20.0]
[1672898602097,76.48,13.287,13.276,291.2159386]
[1672898603776,117.69601344,13.287,13.276,66.8159386]
[1672898603969,20.0,13.286,13.276,66.8159386]
[1672898604182,20.0,13.285,13.276,66.8159386]
[1672898604495,21.85,13.282,13.276,66.8159386]
[1672898604707,20.0,13.281,13.276,66.8159386]
[1672898605235,117.72601344,13.281,13.276,66.8159386]
[1672898605767,20.0,13.28,13.276,66.8159386]
[1672898605977,20.0,13.279,13.276,66.8159386]
[1672898606491,76.52,13.279,13.276,66.8159386]
[1672898607352,76.52,13.279,13.276,49.2823386]
[1672898607570,20.0,13.278,13.276,49.2823386]
[1672898607773,20.0,13.277,13.276,49.2823386]
[1672898617977,41.21601344,13.281,13.276,273.6823386]
[1672898618195,98.416,13.294,13.276,273.6823386]
[1672898618513,98.416,13.294,13.277,20.0]
[1672898618711,56.48,13.289,13.277,361.1999]
[1672898618928,56.47,13.291,13.277,361.1999]
[1672898619123,56.48,13.288,13.277,116.7999]
[1672898619333,37.88720234,13.29,13.277,116.7999]
[1672898619543,56.48,13.287,13.277,341.1999]
[1672898619770,20.0,13.286,13.277,341.1999]